bitfinex-derivatives/quotes_ETHF0:USTF0_20250327
["timestamp","ask_amount","ask_price","bid_price","bid_amount"]
[1743105351083,2.98713,2006.3,2006.2,1.3145]
[1743105352277,0.99711,2006.2,2006.1,0.99708]
[1743105352477,2.41211,2006.2,2006.1,0.99708]
[1743105353882,2.41211,2006.2,2006.1,2.34938]
[1743105354186,2.41211,2006.2,2006.1,1.3523]
[1743105354580,2.41211,2006.2,2006.1,2.34943]
[1743105360289,0.99706,2006.3,2006.2,0.99703]
[1743105360484,0.99706,2006.3,2006.2,2.42603]
[1743105360888,2.30896,2006.3,2006.2,2.42603]
[1743105361484,2.30896,2006.3,2006.2,1.429]
[1743105361685,2.30896,2006.3,2006.2,2.42608]
[1743105361888,2.30896,2006.3,2006.2,1.429]
[1743105362190,2.30896,2006.3,2006.2,2.42608]
[1743105362486,3.92387645,2006.5,2006.3,0.99703]
[1743105362689,0.99702,2006.4,2006.3,3.02463]
[1743105362987,2.36422,2006.4,2006.3,3.02463]
[1743105363193,2.36422,2006.4,2006.3,2.31693]
[1743105365293,2.36422,2006.4,2006.3,1.3199]
[1743105365492,2.36422,2006.4,2006.3,2.31693]
[1743105365689,2.36422,2006.4,2006.3,1.3199]
[1743105365890,2.36422,2006.4,2006.3,2.31693]
[1743105366292,2.36422,2006.4,2006.3,1.3199]
[1743105366498,2.36422,2006.4,2006.3,2.31693]
[1743105371593,2.36422,2006.4,2006.3,1.3199]
[1743105371794,0.99713,2006.2,2006.1,0.99713]
[1743105372002,4.20493,2006.2,2006.1,2.42623]
[1743105372301,6.29003,2006.2,2006.1,2.42623]
[1743105373102,0.99713,2006.1,2006.0,1.00461645]
[1743105373297,2.39333,2006.1,2006.0,1.00461645]
[1743105373505,3.09033,2006.1,2006.0,1.00461645]
[1743105373711,3.09033,2006.1,2006.0,0.00747645]
[1743105373998,3.09033,2006.1,2006.0,1.00465645]
[1743105374510,3.09033,2006.1,2006.0,2.32205645]
[1743105375399,0.99704,2006.4,2006.1,0.99713]
[1743105375598,3.21527645,2006.5,2006.2,6.30269]
[1743105375798,3.21527645,2006.5,2006.4,0.99698]
[1743105376097,4.21220645,2006.5,2006.4,22.79698]
[1743105376405,4.21220645,2006.5,2006.4,2.96023522]
[1743105376594,3.21527645,2006.5,2006.4,2.96023522]
[1743105376905,4.21220645,2006.5,2006.4,2.96023522]
[1743105377406,3.21527645,2006.5,2006.4,2.96023522]
[1743105378105,4.21220645,2006.5,2006.4,2.96023522]
[1743105378404,3.21527645,2006.5,2006.4,2.96023522]
[1743105378605,4.21220645,2006.5,2006.4,2.96023522]
[1743105378906,5.56660645,2006.5,2006.4,2.96023522]
[1743105379499,4.56967645,2006.5,2006.4,2.96023522]
[1743105379699,3.21527645,2006.5,2006.4,2.96023522]
[1743105380804,4.21220645,2006.5,2006.4,1.64283522]
[1743105381007,5.54580645,2006.5,2006.4,1.64283522]
[1743105381403,4.54887645,2006.5,2006.4,1.64283522]
[1743105381600,5.54580645,2006.5,2006.4,1.64283522]
[1743105384399,2.33800645,2006.5,2006.4,1.64283522]
[1743105384600,1.34107645,2006.5,2006.4,1.64283522]
[1743105384801,2.33800645,2006.5,2006.4,1.64283522]
[1743105385005,0.00747645,2006.5,2006.4,4.89183522]
[1743105385300,0.00747645,2006.5,2006.4,26.69183522]
[1743105391110,0.00747645,2006.5,2006.4,4.89183522]
[1743105392110,0.00747645,2006.5,2006.4,6.32173522]
[1743105394216,0.00747645,2006.5,2006.4,6.31473522]
[1743105394412,0.00747645,2006.5,2006.4,28.11473522]
[1743105394611,0.00747645,2006.5,2006.4,6.31473522]
[1743105395110,0.00747645,2006.5,2006.4,28.11473522]
[1743105396319,1.42857645,2006.5,2006.4,28.11473522]
[1743105396511,1.42857645,2006.5,2006.4,3.07273522]
[1743105396718,2.85187645,2006.5,2006.4,6.31173522]
[1743105396920,2.85187645,2006.5,2006.4,28.11173522]
[1743105398429,3.84880645,2006.5,2006.4,24.87273522]
[1743105398726,3.84880645,2006.5,2006.4,3.07273522]
[1743105398927,2.85187645,2006.5,2006.4,3.07273522]
[1743105399330,3.84880645,2006.5,2006.4,3.07273522]
[1743105399521,2.85187645,2006.5,2006.4,3.07273522]
[1743105399721,3.84880645,2006.5,2006.4,3.07273522]
[1743105399922,2.85187645,2006.5,2006.4,3.07273522]
[1743105401318,2.13117645,2006.5,2006.4,3.07273522]
[1743105406731,3.12810645,2006.5,2006.4,3.07273522]
[1743105421832,3.12810645,2006.5,2006.4,0.64585522]
[1743105422235,6.33590645,2006.5,2006.4,0.64585522]
[1743105422840,0.99698,2006.4,2006.3,0.99703]
[1743105423041,3.09828,2006.4,2006.3,0.99703]
[1743105423240,3.09828,2006.4,2006.3,1.64376355]
[1743105423441,3.09828,2006.4,2006.3,2.08193355]
[1743105423742,3.09828,2006.4,2006.3,3.07896355]
[1743105424746,3.09828,2006.4,2006.3,1.64376355]
[1743105428240,3.09828,2006.4,2006.3,0.64673355]
[1743105428443,3.09828,2006.4,2006.3,1.64376355]
[1743105428747,0.99703,2006.3,2006.2,2.43225]
[1743105428948,2.41643,2006.3,2006.2,3.07898336]
[1743105429338,2.41643,2006.3,2006.2,2.08193336]
[1743105429539,2.41643,2006.3,2006.2,0.64673336]
[1743105430142,0.99713,2006.1,2006.0,0.00747645]
[1743105430849,3.78293,2006.1,2006.0,0.00747645]
[1743105433551,6.99073,2006.1,2006.0,0.00747645]
[1743105445449,6.99073,2006.1,2006.0,1.33797645]
[1743105455456,5.952,2006.4,2006.0,2.33515645]
[1743105455655,0.99705,2006.3,2006.2,0.99703]
[1743105456260,0.99705,2006.3,2006.2,3.00774505]
[1743105456962,2.32495,2006.3,2006.2,3.00774505]
[1743105459064,2.32495,2006.3,2006.2,2.01071505]
[1743105459459,2.32495,2006.3,2006.2,1.3642]
[1743105460366,0.99713,2006.1,2006.0,0.70817645]
[1743105460855,0.99713,2006.1,2006.0,1.35485809]
[1743105461059,0.99713,2006.1,2006.0,2.35203809]
[1743105461461,0.99703,2006.4,2006.3,0.99699]
[1743105461957,0.99703,2006.4,2006.3,1.64367164]
[1743105462370,0.99703,2006.4,2006.3,2.37939]
[1743105463763,0.99703,2006.4,2006.3,1.3824]
[1743105463960,2.34243,2006.4,2006.3,1.3824]
[1743105464166,2.34243,2006.4,2006.3,2.7825]
[1743105464470,2.34243,2006.4,2006.3,3.77953]
[1743105466567,0.99703,2006.4,2006.3,3.77953]
[1743105466871,4.21220645,2006.5,2006.4,0.99698]
[1743105467074,4.21220645,2006.5,2006.4,2.40728]
[1743105467763,3.21527645,2006.5,2006.4,2.40728]
[1743105467968,0.00747645,2006.5,2006.4,2.40728]
[1743105468474,0.00747645,2006.5,2006.4,3.0529705]
[1743105469468,1.00440645,2006.5,2006.4,3.0529705]
[1743105470469,2.31760645,2006.5,2006.4,3.0529705]
[1743105473173,2.31760645,2006.5,2006.4,2.0559905]
[1743105473771,2.31760645,2006.5,2006.4,1.4103]
[1743105474275,2.31760645,2006.5,2006.4,2.40728]
[1743105475878,0.00747645,2006.5,2006.4,2.40728]
[1743105476378,0.00747645,2006.5,2006.4,24.20728]
[1743105476580,0.00747645,2006.5,2006.4,24.85251366]
[1743105478072,1.00440645,2006.5,2006.4,24.85251366]
[1743105478375,0.00747645,2006.5,2006.4,24.85251366]
[1743105481576,3.2078,2007.2,2006.9,0.99674]
[1743105481777,0.99657,2007.3,2007.2,0.99654]
[1743105482178,2.31677,2007.3,2007.2,0.99654]
[1743105482876,0.99659,2007.2,2007.1,2.3293]
[1743105483075,2.31679,2007.2,2007.1,2.3293]
[1743105483984,1.3202,2007.2,2007.1,2.3293]
[1743105485587,2.31679,2007.2,2007.1,2.3293]
[1743105485777,1.3202,2007.2,2007.1,2.3293]
[1743105486082,0.99655,2007.3,2007.2,0.99654]
[1743105486284,1.3263,2007.3,2007.2,0.99654]
[1743105486471,2.32284,2007.3,2007.2,0.99654]
[1743105486677,1.3263,2007.3,2007.2,0.99654]
[1743105487186,1.70222,2007.4,2007.3,0.99654]
[1743105487373,3.13852,2007.4,2007.3,0.99654]
[1743105487578,2.142,2007.4,2007.3,0.99654]
[1743105489082,3.13849,2007.4,2007.3,0.99654]
[1743105489785,1.00395645,2007.5,2007.4,0.99649]
[1743105489987,0.00747645,2007.5,2007.4,0.99649]
[1743105490186,1.00391645,2007.5,2007.4,2.36609]
[1743105490386,0.00747645,2007.5,2007.4,2.36609]
[1743105490687,0.00747645,2007.5,2007.4,1.3696]
[1743105490688,1.00391645,2007.5,2007.4,1.3696]
[1743105490886,1.00391645,2007.5,2007.3,4.20351]
[1743105490887,0.99649,2007.4,2007.3,4.20351]
[1743105491090,3.10339,2007.4,2007.3,4.20351]
[1743105493089,2.1069,2007.4,2007.3,4.20351]
[1743105493987,3.10339,2007.4,2007.3,4.20351]
[1743105494889,0.99654,2007.3,2007.2,3.2078]
[1743105495087,0.99659,2007.2,2007.1,0.99659]
[1743105495590,2.35179,2007.2,2007.1,0.99659]
[1743105500984,0.99664,2007.1,2007.0,4.90333645]
[1743105501187,3.09124,2007.1,2007.0,4.90333645]
[1743105501789,3.09124,2007.1,2007.0,6.26343645]
[1743105505490,3.09124,2007.1,2007.0,6.90851123]
[1743105506104,3.09124,2007.1,2007.0,0.65255123]
[1743105506511,3.09124,2007.1,2007.0,1.98535123]
[1743105506715,3.09124,2007.1,2007.0,2.33696645]
[1743105507005,3.09124,2007.1,2007.0,1.34027645]
[1743105507605,6.29904,2007.1,2007.0,0.00747645]
[1743105507805,6.29904,2007.1,2006.6,3.2078]
[1743105507806,10.28566,2007.1,2006.6,4.20466]
[1743105508006,0.99684,2006.7,2006.6,2.32966]
[1743105508405,3.08364,2006.7,2006.6,2.32969]
[1743105508808,3.08364,2006.7,2006.6,2.97545236]
[1743105509007,3.08364,2006.7,2006.6,0.64576236]
[1743105510015,0.99689,2006.6,2006.5,2.40743]
[1743105510209,2.41959,2006.6,2006.5,2.40743]
[1743105510809,1.4227,2006.6,2006.5,3.05299997]
[1743105511108,2.41959,2006.6,2006.5,3.05299997]
[1743105513107,1.4227,2006.6,2006.5,3.05299997]
[1743105513309,2.41959,2006.6,2006.5,3.05299997]
[1743105517312,2.41959,2006.6,2006.5,2.40743]
[1743105518415,2.41959,2006.6,2006.5,1.4105]
[1743105518721,2.41959,2006.6,2006.5,2.40743]
[1743105518924,0.99693,2006.5,2006.4,50.26447645]
[1743105519111,6.23043,2006.5,2006.4,0.00747645]
[1743105525020,6.23043,2006.5,2006.4,1.00445645]
[1743105525727,6.23043,2006.5,2006.4,2.40325645]
[1743105526827,3.2078,2006.5,2006.4,2.40325645]
[1743105528029,3.2078,2006.5,2006.4,3.04765829]
[1743105529630,4.20473,2006.5,2006.4,3.04765829]
[1743105529830,0.99693,2006.6,2006.5,0.99689]
[1743105530031,0.99693,2006.6,2006.5,2.32189]
[1743105530429,2.30963,2006.6,2006.5,2.32189]
[1743105530628,2.30963,2006.6,2006.5,1.325]
[1743105530629,0.99689,2006.6,2006.5,1.325]
[1743105530834,5.69988,2006.8,2006.4,0.00747645]
[1743105530835,0.99693,2006.5,2006.4,0.00747645]
[1743105531130,5.61163,2006.5,2006.4,1.33247645]
[1743105531535,5.61163,2006.5,2006.4,0.00747645]
[1743105536128,5.61163,2006.5,2006.4,1.33717645]
[1743105539440,4.89413,2006.5,2006.4,3.05725645]
[1743105540844,4.89413,2006.5,2006.4,2.06027645]
[1743105541744,4.89413,2006.5,2006.4,1.33717645]
[1743105543940,4.89413,2006.5,2006.4,0.00747645]
[1743105544539,0.99728,2005.8,2005.6,50.247]
[1743105544738,0.99728,2005.8,2005.7,2.1424]
[1743105545246,0.99728,2005.8,2005.7,2.78881453]
[1743105546242,0.99738,2005.6,2005.5,0.00747645]
[1743105546643,0.99738,2005.6,2005.5,1.31257645]
[1743105550049,1.4444,2005.7,2005.5,1.31257645]
[1743105550245,0.99738,2005.6,2005.5,1.31257645]
[1743105550844,2.44177,2005.7,2005.5,2.30999645]
[1743105551148,0.99738,2005.6,2005.5,1.31257645]
[1743105551445,0.99736,2005.7,2005.6,1.3731]
[1743105552647,0.99733,2005.7,2005.6,1.3731]
[1743105554844,0.99738,2005.6,2005.5,0.00747645]
[1743105560241,4.20538,2005.6,2005.5,0.00747645]
[1743105560546,4.20538,2005.6,2005.5,6.45e-06]
[1743105566153,4.91858,2005.6,2005.5,6.45e-06]
[1743105567259,1.71058,2005.6,2005.5,6.45e-06]
[1743105569461,1.71058,2005.6,2005.5,1.43450645]
[1743105572158,1.71058,2005.6,2005.5,6.45e-06]
[1743105573660,4.92158,2005.6,2005.5,6.45e-06]
[1743105575565,7.42158,2005.6,2005.5,6.45e-06]
[1743105577068,13.45515696,2005.6,2005.5,6.45e-06]
[1743105577470,13.45515473,2005.6,2005.5,6.45e-06]
[1743105577855,4.98852,2005.0,2004.2,72.075]
[1743105578156,0.99778,2004.8,2004.7,1.3739]
[1743105578357,4.20558,2004.8,2004.7,1.3739]
[1743105578661,5.53558,2004.8,2004.7,1.3739]
[1743105579767,0.99788,2004.6,2004.5,0.6768]
[1743105579968,0.99793,2004.5,2004.4,1.398]
[1743105580267,0.99808,2004.2,2004.1,21.8]
[1743105580459,3.2078,2004.2,2003.3,2.49622]
[1743105580658,0.99813,2004.1,2004.0,0.6862]
[1743105580967,4.20593,2004.1,2004.0,0.6862]
[1743105581165,2.49562,2003.9,2003.5,22.79841]
[1743105581369,0.99835,2003.7,2003.6,0.99836]
[1743105581664,0.99833,2003.7,2003.6,2.30316]
[1743105581964,0.99833,2003.7,2003.6,1.3048]
[1743105582162,0.99833,2003.7,2003.6,2.30318]
[1743105582361,3.2078,2003.8,2003.7,0.99833]
[1743105582569,3.2078,2003.8,2003.7,2.96853]
[1743105583267,4.20608,2003.8,2003.7,2.96853]
[1743105584364,0.99828,2003.8,2003.7,2.96853]
[1743105584664,3.2078,2004.1,2004.0,0.99818]
[1743105584862,0.99817,2004.1,2004.0,0.99815]
[1743105585163,0.99818,2004.0,2003.9,2.3127]
[1743105585362,0.99818,2004.0,2003.9,1.3145]
[1743105585556,0.99818,2004.0,2003.9,23.1145]
[1743105586260,0.99818,2004.0,2003.9,24.11273]
[1743105586460,0.99818,2004.0,2003.9,23.1145]
[1743105586660,0.99818,2004.0,2003.9,24.11273]
[1743105587067,0.99818,2004.0,2003.9,23.1145]
[1743105587366,0.99818,2004.0,2003.9,1.3145]
[1743105587557,0.99818,2004.0,2003.9,2.31273]
[1743105588562,0.99818,2004.0,2003.9,1.3145]
[1743105589066,1.71108,2004.0,2003.9,1.3145]
[1743105590365,0.99818,2004.0,2003.9,1.3145]
[1743105590869,0.99818,2004.0,2003.9,2.31273]
[1743105591267,0.99818,2004.0,2003.9,1.3145]
[1743105591670,0.99818,2004.0,2003.9,2.31273]
[1743105591871,0.99818,2004.0,2003.9,1.3145]
[1743105595359,0.99818,2004.0,2003.9,2.31273]
[1743105595772,0.99818,2004.0,2003.9,1.3145]
[1743105595972,0.99818,2004.0,2003.9,2.31273]
[1743105596168,0.99818,2004.0,2003.9,1.3145]
[1743105596970,1.68978,2004.0,2003.9,1.3145]
[1743105597176,3.05258,2004.0,2003.9,1.3145]
[1743105597473,2.0544,2004.0,2003.5,0.99841]
[1743105597675,0.99833,2003.7,2003.6,2.1052]
[1743105597971,0.99833,2003.7,2003.6,3.10358]
[1743105598169,3.2078,2003.9,2003.6,2.1052]
[1743105598374,3.2078,2003.9,2003.8,0.99828]
[1743105598669,0.99815,2004.1,2004.0,0.99813]
[1743105598867,3.2078,2004.2,2003.9,5.36648]
[1743105599072,3.2078,2004.2,2004.1,0.99813]
[1743105599270,0.00747645,2004.3,2004.2,0.99808]
[1743105599467,0.99795,2004.5,2004.4,0.99793]
[1743105599866,1.3628,2004.8,2004.4,3.2078]
[1743105600065,0.99774,2005.0,2004.9,0.99773]
[1743105600266,0.99778,2004.8,2004.7,3.2078]
[1743105601270,0.99788,2004.6,2004.5,0.00747645]
[1743105601470,0.99788,2004.6,2004.5,1.00540645]
[1743105601977,0.99788,2004.6,2004.5,0.00747645]
[1743105602173,0.99788,2004.6,2004.5,1.00540645]
[1743105602369,0.99786,2004.7,2004.6,0.99783]
[1743105602570,0.99788,2004.6,2004.5,1.00537645]
[1743105602771,0.99788,2004.7,2004.6,0.99784]
[1743105602977,0.99779,2004.9,2004.8,0.99773]
[1743105603273,0.00747645,2005.0,2004.9,0.99773]
[1743105603462,0.00747645,2005.0,2004.9,1.57853]
[1743105603463,1.00515645,2005.0,2004.9,1.57853]
[1743105603662,0.00747645,2005.0,2004.9,0.99773]
[1743105604676,1.00519645,2005.0,2004.9,0.99773]
[1743105604876,0.00747645,2005.0,2004.9,0.99773]
[1743105605080,1.00515645,2005.0,2004.9,0.99773]
[1743105606180,0.00747645,2005.0,2004.9,0.99773]
[1743105606676,0.99773,2004.9,2004.8,3.2078]
[1743105606976,2.33913,2004.9,2004.8,3.2078]
[1743105607172,2.33913,2004.9,2004.8,4.20558]
[1743105607372,2.33913,2004.9,2004.8,3.2078]
[1743105608480,1.00519645,2005.0,2004.9,0.99773]
[1743105608679,1.00515645,2005.0,2004.9,0.99773]
[1743105609289,0.00747645,2005.0,2004.8,3.2078]
[1743105609487,1.00517645,2005.0,2004.9,0.99773]
[1743105609783,0.99773,2004.9,2004.8,4.20554]
[1743105610285,0.99773,2004.9,2004.8,3.2078]
[1743105610579,0.99778,2004.8,2004.7,0.99782]
[1743105610777,1.65558,2004.8,2004.7,0.99782]
[1743105610977,0.6578,2004.8,2004.7,0.99782]
[1743105611183,1.65558,2004.8,2004.7,0.99782]
[1743105611378,0.6578,2004.8,2004.7,0.99782]
[1743105611580,1.65558,2004.8,2004.7,0.99782]
[1743105611780,0.6578,2004.8,2004.7,2.42502]
[1743105611981,1.65558,2004.8,2004.7,2.42502]
[1743105612179,0.6578,2004.8,2004.7,2.42502]
[1743105612376,1.65558,2004.8,2004.7,2.42502]
[1743105612785,1.65558,2004.8,2004.7,1.4272]
[1743105612987,0.6578,2004.8,2004.7,2.42503]
[1743105614190,1.65558,2004.8,2004.7,2.42503]
[1743105615582,3.21527645,2005.0,2004.7,1.4272]
[1743105615781,0.99777,2004.9,2004.8,2.33545]
[1743105615982,2.38347,2004.9,2004.8,2.33545]
[1743105616985,2.38343,2004.9,2004.8,2.33545]
[1743105617294,1.00518645,2005.0,2004.9,0.99773]
[1743105617495,2.39088645,2005.0,2004.9,2.33543]
[1743105619294,2.39085645,2005.0,2004.9,2.33543]
[1743105619891,0.00747645,2005.0,2004.9,2.33543]
[1743105620087,0.99759,2005.3,2005.2,0.99754]
[1743105620288,3.77555,2005.4,2005.3,0.99753]
[1743105620589,2.38085,2005.4,2005.3,0.99753]
[1743105620996,0.99753,2005.3,2005.2,2.41744]
[1743105621198,0.99753,2005.3,2005.2,1.4199]
[1743105621397,0.99768,2005.1,2005.0,0.99764]
[1743105621696,0.99763,2005.1,2005.0,1.3407]
[1743105621999,0.99759,2005.3,2005.2,0.99753]
[1743105622298,1.66769,2005.3,2005.2,0.99753]
[1743105623199,0.6701,2005.3,2005.2,0.99753]
[1743105623497,1.66763,2005.3,2005.2,0.99753]
[1743105623697,1.66763,2005.3,2005.2,2.33823]
[1743105624397,0.99758,2005.2,2005.1,3.2078]
[1743105624795,0.99763,2005.1,2005.0,1.3204]
[1743105624995,1.69143,2005.1,2005.0,1.3204]
[1743105627300,0.99763,2005.1,2005.0,2.31808]
[1743105628401,0.99763,2005.1,2005.0,2.96328264]
[1743105633200,1.66283,2005.1,2005.0,2.96328264]
[1743105633700,1.66283,2005.1,2004.8,8.94215]
[1743105633701,0.99773,2004.9,2004.8,3.2078]
[1743105634609,0.99773,2004.9,2004.8,4.20558]
[1743105634900,0.99773,2004.9,2004.8,3.2078]
[1743105635411,0.99773,2004.9,2004.8,4.20558]
[1743105635606,0.99773,2004.9,2004.8,3.2078]
[1743105635902,0.99783,2004.7,2004.6,1.3908]
[1743105636105,0.99783,2004.7,2004.6,2.38865]
[1743105636495,1.3935,2004.7,2004.6,2.38865]
[1743105636902,2.39133,2004.7,2004.6,3.06355]
[1743105640101,2.39133,2004.7,2004.6,2.0657]
[1743105640307,2.39133,2004.7,2004.6,2.38868]
[1743105640704,2.39133,2004.7,2004.6,1.3908]
[1743105641007,2.39133,2004.7,2004.6,2.38868]
[1743105641597,0.99788,2004.6,2004.5,54.50418645]
[1743105641803,0.99788,2004.6,2004.5,55.90008645]
[1743105642108,0.99788,2004.6,2004.5,5.60908645]
[1743105642910,1.70735,2004.8,2004.7,0.99783]
[1743105643511,0.6882,2004.9,2004.8,0.99778]
[1743105643814,0.99766,2005.1,2004.8,0.99778]
[1743105643815,1.70773,2005.1,2005.0,0.99768]
[1743105644813,1.70773,2005.1,2005.0,1.69198]
[1743105645914,1.70773,2005.1,2005.0,2.33328999]
[1743105647214,0.6529,2005.3,2005.1,0.99763]
[1743105647424,2.35648,2005.3,2005.2,2.33908]
[1743105647912,2.35648,2005.3,2005.2,2.98038999]
[1743105648215,2.35648,2005.3,2005.2,2.33908]
[1743105648418,3.68798,2005.3,2005.2,2.33908]
[1743105648922,2.98198,2005.3,2005.2,2.98027714]
[1743105649120,3.68798,2005.3,2005.2,2.98027714]
[1743105649509,0.99758,2005.2,2005.1,4.22959]
[1743105649708,2.32068,2005.2,2005.1,4.22959]
[1743105650110,2.32068,2005.2,2005.0,2.0128]
[1743105650111,0.99763,2005.1,2005.0,3.01045]
[1743105650409,2.32073,2005.1,2005.0,2.31615]
[1743105650610,2.32073,2005.1,2005.0,2.95737968]
[1743105653618,0.99762,2005.2,2005.1,0.99763]
[1743105653820,2.30952,2005.2,2005.1,0.99763]
[1743105654217,1.3119,2005.2,2005.1,4.84665968]
[1743105654413,1.3589,2005.3,2005.2,0.99758]
[1743105654414,1.3119,2005.3,2005.2,0.99758]
[1743105654614,0.99753,2005.4,2005.2,0.99758]
[1743105654615,2.30943,2005.4,2005.3,0.99753]
[1743105655115,0.99753,2005.3,2005.2,0.64122968]
[1743105655312,0.99778,2004.8,2004.7,0.99781]
[1743105657419,0.99783,2004.7,2004.6,2.39944]
[1743105657717,0.99783,2004.7,2004.5,4.21320645]
[1743105657718,0.99788,2004.6,2004.5,4.21320645]
[1743105658219,2.34298,2004.6,2004.5,3.21527645]
[1743105658420,3.05878,2004.6,2004.5,3.21527645]
[1743105658717,3.05878,2004.6,2004.5,0.00747645]
[1743105659821,3.05878,2004.6,2004.5,1.00540645]
[1743105661013,2.34298,2004.6,2004.5,1.00540645]
[1743105666518,3.01828,2004.6,2004.5,1.00540645]
[1743105666918,3.01828,2004.6,2004.5,0.00747645]
[1743105668424,0.99813,2004.1,2004.0,50.297]
[1743105668624,0.99813,2004.1,2004.0,51.29516]
[1743105668928,0.99813,2004.1,2004.0,0.99816]
[1743105669328,2.43083,2004.1,2004.0,0.99816]
[1743105669923,1.00554645,2004.3,2003.9,5.70328]
[1743105670125,1.00554645,2004.3,2004.2,0.99808]
[1743105671116,0.99808,2004.2,2004.1,1.72098]
[1743105671322,2.38238,2004.2,2004.1,1.72098]
[1743105671519,0.99818,2004.1,2004.0,0.99814]
[1743105671830,2.38248,2004.1,2004.0,0.99814]
[1743105672030,3.05148,2004.1,2004.0,2.32494]
[1743105672720,3.05148,2004.1,2004.0,1.3268]
[1743105675823,3.05148,2004.1,2004.0,2.32498]
[1743105677128,3.05148,2004.1,2004.0,1.3268]
[1743105677329,3.05148,2004.1,2004.0,2.32498]
[1743105678029,2.38248,2004.1,2004.0,2.32498]
[1743105679125,0.99818,2004.1,2004.0,2.32498]
[1743105679825,2.30958,2004.1,2004.0,2.32498]
[1743105681833,2.30958,2004.1,2004.0,1.3268]
[1743105682732,2.30958,2004.1,2003.8,3.91907645]
[1743105682935,2.30958,2004.1,2003.8,4.66177645]
[1743105682936,0.99823,2003.9,2003.8,4.66177645]
[1743105683329,2.37463,2003.9,2003.8,4.66177645]
[1743105684022,2.37463,2003.9,2003.8,0.00747645]
[1743105684423,2.4957,2003.8,2003.2,3.2078]
[1743105684632,0.99852,2003.4,2003.3,0.99848]
[1743105684833,0.99852,2003.4,2003.3,2.44498]
[1743105685131,1.3495,2003.4,2003.3,2.44498]
[1743105685538,2.34798,2003.4,2003.3,3.13978]
[1743105688042,2.34798,2003.4,2003.3,2.1413]
[1743105688233,2.34798,2003.4,2003.3,3.13983]
[1743105688434,2.34798,2003.4,2003.3,1.4465]
[1743105689238,2.34798,2003.4,2003.3,2.44503]
[1743105689644,2.34798,2003.4,2003.3,1.4465]
[1743105690240,2.34798,2003.4,2003.3,2.44503]
[1743105690541,2.34798,2003.4,2003.3,1.4465]
[1743105690938,2.34798,2003.4,2003.3,2.44503]
[1743105691138,2.34798,2003.4,2003.3,1.4465]
[1743105691645,2.34798,2003.4,2003.3,2.44503]
[1743105694159,1.3495,2003.4,2003.3,2.44503]
[1743105694549,6.39424,2003.7,2003.3,2.44503]
[1743105694550,0.99846,2003.5,2003.4,0.99848]
[1743105694743,0.99846,2003.5,2003.4,2.97778]
[1743105697242,2.41341,2003.6,2003.5,0.99843]
[1743105697447,2.41341,2003.6,2003.5,2.37003]
[1743105698852,2.41341,2003.6,2003.5,1.3716]
[1743105700253,2.41341,2003.6,2003.5,2.37003]
[1743105700445,2.41341,2003.6,2003.5,1.3716]
[1743105701050,0.99848,2003.5,2003.4,0.99844]
[1743105701250,2.41318,2003.5,2003.4,0.99844]
[1743105701447,2.41313,2003.5,2003.4,0.99844]
[1743105702049,0.99842,2003.6,2003.5,0.99838]
[1743105702250,0.99848,2003.5,2003.4,0.99844]
[1743105702449,2.41318,2003.5,2003.4,2.40884]
[1743105706861,2.41318,2003.5,2003.4,1.4104]
[1743105707349,0.99848,2003.4,2003.3,4.6004]
[1743105707554,3.06128,2003.4,2003.3,5.59893]
[1743105708258,3.06128,2003.4,2003.3,4.6004]
[1743105708861,3.06128,2003.4,2003.3,0.99853]
[1743105710147,3.72278,2003.4,2003.3,0.99853]
[1743105710859,0.99853,2003.3,2003.2,2.39113]
[1743105711061,1.3495,2003.3,2002.9,0.99868]
[1743105711361,0.99863,2003.1,2003.0,2.31975]
[1743105719060,0.99863,2003.1,2003.0,0.99865]
[1743105719957,0.99868,2003.0,2002.9,1.3091]
[1743105720152,2.31798,2003.0,2002.9,2.30783]
[1743105720565,2.31798,2003.0,2002.6,5.71709]
[1743105720566,2.49682,2002.9,2002.6,0.99884]
[1743105720766,0.99888,2002.7,2002.6,0.99884]
[1743105721858,0.99888,2002.7,2002.6,2.34364]
[1743105722266,0.99888,2002.7,2002.6,1.3448]
[1743105722568,0.99888,2002.7,2002.6,2.34368]
[1743105722866,1.68348,2002.7,2002.6,2.34368]
[1743105723263,2.4972,2002.6,2002.1,27.50561]
[1743105723464,0.99904,2002.4,2002.3,0.99899]
[1743105723661,0.99904,2002.4,2002.3,2.34379]
[1743105724279,5.65489,2002.6,2002.3,2.34379]
[1743105724280,0.99896,2002.5,2002.4,0.99893]
[1743105724470,0.99896,2002.5,2002.4,2.34373]
[1743105726172,1.6593,2002.6,2002.5,0.99893]
[1743105726469,1.6593,2002.6,2002.5,3.13453]
[1743105729266,1.65928,2002.6,2002.5,3.13453]
[1743105729570,0.6604,2002.6,2002.5,3.13453]
[1743105729870,1.68347,2002.7,2002.6,0.99888]
[1743105730073,1.68347,2002.7,2002.6,2.44188]
[1743105730260,1.68347,2002.7,2002.6,3.14548]
[1743105731471,1.68347,2002.7,2002.6,2.44188]
[1743105731872,2.99807,2002.7,2002.6,2.44188]
[1743105733168,1.9992,2002.7,2002.1,30.00337]
[1743105733369,1.9992,2002.7,2002.4,0.99893]
[1743105733370,0.99898,2002.5,2002.4,0.99893]
[1743105733867,2.31352,2002.6,2002.5,0.99893]
[1743105734375,6.37067,2002.8,2002.5,0.99893]
[1743105734376,4.20658,2002.8,2002.7,0.99883]
[1743105734679,3.2078,2002.8,2002.7,0.99883]
[1743105734875,0.99865,2003.1,2003.0,0.99868]
[1743105735263,2.33685,2003.1,2003.0,0.99868]
[1743105735766,2.33685,2003.1,2003.0,2.40358]
[1743105736073,1.3382,2003.1,2003.0,2.40358]
[1743105736371,4.20641,2003.2,2003.0,2.40358]
[1743105736372,4.20641,2003.2,2003.1,0.99863]
[1743105736574,5.54461,2003.2,2003.1,3.07363]